[Event "GER-ch Youth U12 2020"]
[Site "Willingen"]
[Date "2020.10.30"]
[Round "6.25"]
[White "Müller, Mitja"]
[Black "Mader, Fabian"]
[Result "1-0"]
[ECO "D96"]
[WhiteElo "1360"]
[BlackElo "1588"]
[Annotator "NA RC"]
[PlyCount "113"]
[EventDate "2020.10.27"]
[EventType "swiss"]
[EventRounds "7"]
[EventCountry "GER"]
[SourceTitle "playchess.com"]
[Source "ChessBase"]
[SourceQuality "1"]
[TimeControl "40/5400+30:1800+30"]

1. d4 {[%emt 0:00:00]} Nf6 {[%emt 0:00:00]} 2. c4 {[%emt 0:00:00]} g6 {[%emt 0:00:00]} 3. Nc3 {[%emt 0:00:07]} d5 {[%emt 0:00:00]} 4. Nf3 {[%emt 0:00:13]} Bg7 {[%emt 0:00:00]} 5. Qb3 {[%emt 0:00:13]} c5 {[%emt 0:00:46]} 6. dxc5 {[%emt 0:00:40]} d4 {[%emt 0:01:36]} 7. Nb5 {[%emt 0:04:14]} Nbd7 {[%emt 0:02:38]} 8. Nbxd4 {[%emt 0:06:08]} Qa5+ {[%emt 0:07:18]} 9. Bd2 {[%emt 0:01:05]} Qxc5 {[%emt 0:00:40]} 10. e3 {[%emt 0:01:21]} O-O {[%emt 0:01:37]} 11. Bb4 {[%emt 0:01:07]} Qc7 {[%emt 0:05:32]} 12. Bxe7 {[%emt 0:01:58]} Re8 {[%emt 0:01:35]} 13. Nb5 {[%emt 0:01:21]} Qb6 {[%emt 0:02:15]} 14. Bxf6 {[%emt 0:01:29]} Nxf6 {[%emt 0:03:43]} 15. Be2 {[%emt 0:00:26]} Ne4 {[%emt 0:15:00]} 16. O-O {[%emt 0:00:53]} Bg4 {[%emt 0:05:08]} 17. Rfd1 {[%emt 0:01:01]} a6 {[%emt 0:13:38]} 18. Nc3 {[%emt 0:01:59]} Qxb3 {[%emt 0:05:22]} 19. axb3 {[%emt 0:00:49]} Bxc3 {[%emt 0:01:48]} 20. bxc3 {[%emt 0:01:59]} Nxc3 {[%emt 0:00:20]} 21. Rd2 {[%emt 0:01:59]} Rad8 {[%emt 0:04:07]} 22. Rc2 {[%emt 0:05:48]} Nxe2+ {[%emt 0:04:09]} 23. Rxe2 {[%emt 0:01:02]} Rd3 {[%emt 0:01:47]} 24. Rb2 {[%emt 0:02:40]} Red8 {[%emt 0:05:00]} 25. Nd4 {[%emt 0:01:46]} Bd1 {[%emt 0:05:10]} 26. Kf1 {[%emt 0:02:46]} Bg4 {[%emt 0:03:43]} 27. h3 {[%emt 0:02:14]} Bf5 {[%emt 0:03:06]} 28. Ke2 {[%emt 0:00:40]} h5 {[%emt 0:03:45]} 29. g4 {[%emt 0:00:31]} hxg4 {[%emt 0:01:11]} 30. hxg4 {[%emt 0:00:12]} R3xd4 {[%emt 0:01:08]} 31. exd4 {[%emt 0:00:31]} Bxg4+ {[%emt 0:00:07]} 32. Kd3 {[%emt 0:00:33]} Bf5+ {[%emt 0:00:17]} 33. Kc3 {[%emt 0:00:11]} Kg7 {[%emt 0:00:17]} 34. d5 {[%emt 0:00:16]} Kf6 {[%emt 0:00:17]} 35. Re1 {[%emt 0:00:35]} Rd6 {[%emt 0:00:20]} 36. f4 {[%emt 0:00:29]} g5 {[%emt 0:00:44]} 37. fxg5+ {[%emt 0:00:17]} Kxg5 {[%emt 0:00:10]} 38. Kd4 {[%emt 0:00:20]} b6 {[%emt 0:00:41]} 39. c5 {[%emt 0:00:47]} bxc5+ 40. Kxc5 {[%emt 0:00:12]} Rd7 {[%emt 0:00:22]} 41. Kc6 {[%emt 0:30:52]} f6 {[%emt 0:31:10]} 42. d6 {[%emt 0:00:25]} a5 {[%emt 0:01:00]} 43. Re7 {[%emt 0:00:14]} Rd8 {[%emt 0:00:30]} 44. d7 {[%emt 0:01:06]} Rxd7 {[%emt 0:00:17]} 45. Rxd7 {[%emt 0:00:09]} Bxd7+ {[%emt 0:00:03]} 46. Kxd7 {[%emt 0:00:05]} f5 {[%emt 0:00:07]} 47. Rf2 {[%emt 0:01:11]} f4 {[%emt 0:00:28]} 48. Kd6 {[%emt 0:00:21]} Kg4 {[%emt 0:00:16]} 49. Ke5 {[%emt 0:00:15]} f3 {[%emt 0:00:23]} 50. Ke4 {[%emt 0:00:11]} Kg3 {[%emt 0:00:43]} 51. Rxf3+ {[%emt 0:00:08]} Kg2 {[%emt 0:00:17]} 52. Ke3 {[%emt 0:00:12]} Kg1 {[%emt 0:00:59]} 53. Rf2 {[%emt 0:00:08]} Kh1 {[%emt 0:00:19]} 54. Kf3 {[%emt 0:00:13]} Kg1 {[%emt 0:00:06]} 55. Kg3 {[%emt 0:00:12]} a4 {[%emt 0:00:12]} 56. bxa4 {[%emt 0:00:05]} Kh1 {[%emt 0:00:03]} 57. Rf1# {[%emt 0:00:11]} 1-0

[Event "GER-ch Youth U12 2020"]
[Site "Willingen"]
[Date "2020.10.30"]
[Round "6.26"]
[White "Ehrlich, Patrick"]
[Black "Schröder, Jan-Hendrik"]
[Result "0-1"]
[ECO "A43"]
[WhiteElo "1448"]
[BlackElo "1324"]
[Annotator "NA RC"]
[PlyCount "62"]
[EventDate "2020.10.27"]
[EventType "swiss"]
[EventRounds "7"]
[EventCountry "GER"]
[SourceTitle "playchess.com"]
[Source "ChessBase"]
[SourceQuality "1"]
[TimeControl "40/5400+30:1800+30"]

1. d4 {[%emt 0:00:00]} c5 {[%emt 0:00:00]} 2. dxc5 {[%emt 0:02:25]} Na6 {[%emt 0:00:00]} 3. e4 {[%emt 0:05:22]} Nxc5 {[%emt 0:00:07]} 4. Nc3 {[%emt 0:00:14]} g6 {[%emt 0:00:23]} 5. Be3 {[%emt 0:00:31]} d6 {[%emt 0:00:26]} 6. Bxc5 {[%emt 0:00:52]} dxc5 {[%emt 0:00:09]} 7. Qxd8+ {[%emt 0:00:04]} Kxd8 {[%emt 0:00:12]} 8. O-O-O+ {[%emt 0:00:44]} Kc7 {[%emt 0:00:41]} 9. a4 {[%emt 0:02:53]} Be6 {[%emt 0:01:33]} 10. Nf3 {[%emt 0:02:39]} Bg7 {[%emt 0:00:47]} 11. Ng5 {[%emt 0:05:28]} Bxc3 {[%emt 0:00:46]} 12. Nxe6+ {[%emt 0:00:20]} fxe6 {[%emt 0:00:12]} 13. bxc3 {[%emt 0:00:06]} Nf6 {[%emt 0:00:30]} 14. f3 {[%emt 0:03:51]} e5 {[%emt 0:01:30]} 15. Bc4 {[%emt 0:10:38]} Rhd8 {[%emt 0:01:19]} 16. Rxd8 {[%emt 0:01:23]} Rxd8 {[%emt 0:00:11]} 17. Rd1 {[%emt 0:00:04]} Rxd1+ {[%emt 0:00:34]} 18. Kxd1 {[%emt 0:00:06]} Kb6 {[%emt 0:00:11]} 19. Kc1 {[%emt 0:00:44]} Ka5 {[%emt 0:00:07]} 20. Bb3 {[%emt 0:00:11]} c4 {[%emt 0:02:16]} 21. Bxc4 {[%emt 0:00:13]} Kxa4 {[%emt 0:00:01]} 22. Kb2 {[%emt 0:00:39]} g5 {[%emt 0:02:35]} 23. g4 {[%emt 0:01:20]} h5 {[%emt 0:00:32]} 24. h3 {[%emt 0:00:16]} h4 {[%emt 0:00:54]} 25. Bb3+ {[%emt 0:00:30]} Kb5 {[%emt 0:00:11]} 26. Ka3 {[%emt 0:00:36]} Kc5 {[%emt 0:00:47]} 27. Ka4 {[%emt 0:00:36]} Nd7 {[%emt 0:00:18]} 28. Ka5 {[%emt 0:00:54]} Nf8 {[%emt 0:00:47]} 29. Bd5 {[%emt 0:01:54]} b6+ {[%emt 0:00:36]} 30. Ka6 {[%emt 0:01:19]} Ng6 {[%emt 0:00:12]} 31. Kxa7 {[%emt 0:02:55]} Nf4 {[%emt 0:00:06]} 0-1

[Event "GER-ch Youth U12 2020"]
[Site "Willingen"]
[Date "2020.10.30"]
[Round "6.27"]
[White "Ivanov, Alexander"]
[Black "Stadelmann, Constantin"]
[Result "0-1"]
[ECO "D31"]
[WhiteElo "1261"]
[BlackElo "1366"]
[Annotator "NA RC"]
[PlyCount "76"]
[EventDate "2020.10.27"]
[EventType "swiss"]
[EventRounds "7"]
[EventCountry "GER"]
[SourceTitle "playchess.com"]
[Source "ChessBase"]
[SourceQuality "1"]
[TimeControl "40/5400+30:1800+30"]

1. d4 d5 2. c4 {[%emt 0:00:11]} e6 {[%emt 0:00:11]} 3. Nc3 {[%emt 0:00:16]} f5 {[%emt 0:00:08]} 4. Nf3 {[%emt 0:00:17]} Nf6 {[%emt 0:00:14]} 5. g3 {[%emt 0:00:07]} c6 {[%emt 0:00:22]} 6. Bg2 {[%emt 0:00:08]} Bd6 {[%emt 0:00:42]} 7. O-O {[%emt 0:00:13]} Ne4 {[%emt 0:00:23]} 8. Bf4 {[%emt 0:01:27]} O-O {[%emt 0:00:12]} 9. Nxe4 {[%emt 0:01:39]} fxe4 {[%emt 0:00:23]} 10. Bxd6 {[%emt 0:01:00]} exf3 {[%emt 0:01:51]} 11. Bxf8 fxg2 12. Kxg2 {[%emt 0:03:24]} Qxf8 {[%emt 0:00:35]} 13. f4 {[%emt 0:00:28]} dxc4 {[%emt 0:00:19]} 14. Qc2 {[%emt 0:00:17]} b5 {[%emt 0:00:15]} 15. a4 {[%emt 0:00:03]} Bb7 {[%emt 0:00:00]} 16. Kg1 {[%emt 0:00:49]} Nd7 {[%emt 0:00:13]} 17. Qe4 {[%emt 0:02:48]} Qe7 {[%emt 0:01:31]} 18. axb5 {[%emt 0:00:41]} Nf6 {[%emt 0:00:13]} 19. Qe5 {[%emt 0:01:50]} Nd7 {[%emt 0:03:40]} 20. Qe4 {[%emt 0:00:29]} Nf6 {[%emt 0:00:11]} 21. Qe5 {[%emt 0:01:46]} Ng4 {[%emt 0:00:31]} 22. Qg5 {[%emt 0:01:46]} Qxg5 {[%emt 0:00:55]} 23. fxg5 {[%emt 0:00:09]} cxb5 {[%emt 0:00:51]} 24. Ra3 {[%emt 0:01:47]} a6 {[%emt 0:01:32]} 25. Rc3 {[%emt 0:02:26]} e5 {[%emt 0:05:49]} 26. e3 {[%emt 0:04:31]} b4 {[%emt 0:01:16]} 27. Rxc4 {[%emt 0:00:51]} Nxe3 28. Rxb4 {[%emt 0:00:49]} Nxf1 {[%emt 0:00:49]} 29. Kxf1 {[%emt 0:00:58]} Rf8+ {[%emt 0:00:50]} 30. Ke1 {[%emt 0:01:57]} Bd5 {[%emt 0:02:08]} 31. dxe5 {[%emt 0:00:48]} Re8 {[%emt 0:00:22]} 32. h4 {[%emt 0:01:11]} Rxe5+ {[%emt 0:00:21]} 33. Kf2 {[%emt 0:00:54]} Rf5+ {[%emt 0:00:32]} 34. Rf4 {[%emt 0:02:00]} Rxf4+ {[%emt 0:00:32]} 35. gxf4 {[%emt 0:00:05]} Kf7 {[%emt 0:00:29]} 36. h5 {[%emt 0:00:27]} Ke6 {[%emt 0:00:34]} 37. b4 {[%emt 0:00:36]} Kf5 {[%emt 0:00:37]} 38. Kg3 {[%emt 0:00:11]} Be4 {[%emt 0:00:16]} 0-1

[Event "GER-ch Youth U12 2020"]
[Site "Willingen"]
[Date "2020.10.30"]
[Round "6.28"]
[White "Bondarcuks, Timurs"]
[Black "Detjen, Mattes"]
[Result "0-1"]
[ECO "C50"]
[WhiteElo "1198"]
[BlackElo "1190"]
[Annotator "NA RC"]
[PlyCount "46"]
[EventDate "2020.10.27"]
[EventType "swiss"]
[EventRounds "7"]
[EventCountry "GER"]
[SourceTitle "playchess.com"]
[Source "ChessBase"]
[SourceQuality "1"]
[TimeControl "40/5400+30:1800+30"]

1. e4 {[%emt 0:00:00]} e5 {[%emt 0:00:00]} 2. Nf3 {[%emt 0:00:00]} Nc6 {[%emt 0:00:00]} 3. Bc4 {[%emt 0:00:00]} Bc5 {[%emt 0:00:16]} 4. Nc3 {[%emt 0:00:58]} Nf6 {[%emt 0:00:40]} 5. O-O {[%emt 0:03:52]} O-O {[%emt 0:01:40]} 6. d3 {[%emt 0:00:11]} Na5 {[%emt 0:01:51]} 7. Bb3 {[%emt 0:02:17]} Nxb3 {[%emt 0:00:47]} 8. axb3 {[%emt 0:00:27]} d5 {[%emt 0:01:07]} 9. Bg5 {[%emt 0:04:09]} d4 {[%emt 0:00:29]} 10. Nd5 {[%emt 0:00:40]} Be7 {[%emt 0:00:11]} 11. Bxf6 {[%emt 0:04:10]} Bxf6 {[%emt 0:00:10]} 12. c3 {[%emt 0:05:18]} c5 {[%emt 0:06:38]} 13. c4 {[%emt 0:01:06]} Bd7 {[%emt 0:01:59]} 14. Ne1 {[%emt 0:04:44]} b5 {[%emt 0:01:59]} 15. Qh5 {[%emt 0:09:03]} a6 {[%emt 0:05:27]} 16. f4 {[%emt 0:00:55]} exf4 {[%emt 0:02:49]} 17. Rxf4 {[%emt 0:03:29]} Bg5 {[%emt 0:02:02]} 18. Rf1 {[%emt 0:02:33]} h6 {[%emt 0:03:55]} 19. Nf3 {[%emt 0:03:39]} Be6 {[%emt 0:02:44]} 20. cxb5 {[%emt 0:05:51]} Bxd5 {[%emt 0:01:15]} 21. exd5 {[%emt 0:00:40]} Qxd5 {[%emt 0:00:18]} 22. bxa6 {[%emt 0:01:50]} Be3+ {[%emt 0:00:19]} 23. Kh1 {[%emt 0:03:17]} Qxh5 {[%emt 0:00:11]} 0-1

[Event "GER-ch Youth U12 2020"]
[Site "Willingen"]
[Date "2020.10.31"]
[Round "7.2"]
[White "Kempe, Caius Emilian"]
[Black "Nitsche, Nikolai"]
[Result "0-1"]
[ECO "D31"]
[WhiteElo "1840"]
[BlackElo "1721"]
[Annotator "NA RC"]
[PlyCount "74"]
[EventDate "2020.10.27"]
[EventType "swiss"]
[EventRounds "7"]
[EventCountry "GER"]
[SourceTitle "playchess.com"]
[Source "ChessBase"]
[SourceQuality "1"]
[TimeControl "40/5400+30:1800+30"]

1. d4 {[%emt 0:00:00]} d5 {[%emt 0:00:24]} 2. c4 {[%emt 0:00:00]} e6 {[%emt 0:00:17]} 3. Nc3 {[%emt 0:00:05]} c6 {[%emt 0:00:34]} 4. cxd5 {[%emt 0:00:08]} exd5 {[%emt 0:00:32]} 5. Nf3 {[%emt 0:01:16]} Nf6 {[%emt 0:00:53]} 6. Bg5 {[%emt 0:00:36]} Bd6 {[%emt 0:01:11]} 7. Qc2 {[%emt 0:01:24]} O-O {[%emt 0:01:57]} 8. e3 {[%emt 0:00:24]} Bg4 {[%emt 0:01:58] D35: Queen's Gambit Declined: Exchange Variation.} 9. Ne5 {[%emt 0:02:10]} Be6 {[%emt 0:04:07]} 10. Bd3 {[%emt 0:01:18]} h6 {[%emt 0:01:22]} 11. Bh4 {[%emt 0:00:13]} Be7 {[%emt 0:00:59]} 12. O-O {[%emt 0:07:39] [#]} Nfd7 $146 {[%emt 0:05:12]} ({Predecessor:} 12... Ng4 13. Bxe7 Qxe7 14. Nxg4 Bxg4 15. Rab1 Nd7 16. b4 Nf6 17. Qb3 Be6 18. Rfc1 Rfc8 {1-0 (38) Bayarmaa,B (2222)-Moazaz,D (2076) Baghdad 2018}) 13. Bxe7 {[%emt 0:01:29]} Qxe7 {[%emt 0:00:07]} 14. f4 {[%emt 0:00:13]} Nxe5 {[%emt 0:03:20]} 15. dxe5 {[%emt 0:00:49]} f5 {[%emt 0:01:52]} 16. Na4 {[%emt 0:04:30]} Nd7 {[%emt 0:03:59]} 17. b4 {[%emt 0:01:27]} a5 {[%emt 0:04:41]} (17... d4 $5) 18. a3 {[%emt 0:14:02]} axb4 {[%emt 0:03:08]} 19. axb4 {[%emt 0:01:37]} b5 {[%emt 0:00:07]} 20. Nb2 {[%emt 0:05:28]} Rxa1 {[%emt 0:00:34]} 21. Rxa1 {[%emt 0:00:00]} Qxb4 {[%emt 0:00:28]} 22. Qxc6 {[%emt 0:00:23]} Nc5 {[%emt 0:02:23]} 23. Rc1 {[%emt 0:13:17]} Rc8 {[%emt 0:03:26]} 24. Qb6 {[%emt 0:02:58] [#]} Qd2 $2 {[%emt 0:02:01]} (24... Kf7 $1 $19 {is more deadly.} 25. Qa7+ Kg8) 25. Rb1 {[%emt 0:05:19]} Qxe3+ {[%emt 0:04:45]} 26. Kh1 {[%emt 0:00:29]} d4 {[%emt 0:08:57]} 27. Qxb5 {[%emt 0:03:52]} (27. Rf1 $142 Qd2 28. Qxb5) 27... Ne4 {[%emt 0:04:02]} 28. Nd1 {[%emt 0:01:30]} Qe1+ {[%emt 0:00:40]} 29. Bf1 {[%emt 0:00:13]} Bc4 {[%emt 0:02:02]} 30. Ne3 {[%emt 0:01:57]} Qxf1+ {[%emt 0:02:33]} 31. Nxf1 {[%emt 0:00:29]} Bxb5 {[%emt 0:00:05]} 32. Rxb5 {[%emt 0:00:42]} Rc1 {[%emt 0:00:13]} 33. Kg1 {[%emt 0:00:09]} d3 {[%emt 0:00:06]} 34. Rb8+ {[%emt 0:01:34]} Kh7 $19 {[%emt 0:00:08]} (34... Kf7 $142 35. Rb7+ Ke8 36. Rb8+ Ke7 37. Rb7+ Ke8 38. Rb8+ Ke7 39. Rb7+ Ke6 40. Rb6+ Kf7 41. Rb7+ Ke6 42. Rb6+ Ke7 43. Rb7+) 35. e6 {[%emt 0:00:19]} d2 {[%emt 0:00:39]} 36. e7 {[%emt 0:00:07]} Rxf1+ {[%emt 0:00:09]} 37. Kxf1 {[%emt 0:00:07]} d1=Q# 0-1

[Event "GER-ch Youth U12 2020"]
[Site "Willingen"]
[Date "2020.10.31"]
[Round "7.5"]
[White "Haubold, Christian Lucas"]
[Black "Chinguun Sundui"]
[Result "0-1"]
[ECO "B01"]
[WhiteElo "1615"]
[BlackElo "1746"]
[Annotator "NA RC"]
[PlyCount "78"]
[EventDate "2020.10.27"]
[EventType "swiss"]
[EventRounds "7"]
[EventCountry "GER"]
[SourceTitle "playchess.com"]
[Source "ChessBase"]
[SourceQuality "1"]
[TimeControl "40/5400+30:1800+30"]

1. e4 {[%emt 0:00:00]} d5 {[%emt 0:00:00]} 2. exd5 {[%emt 0:00:00]} Qxd5 {[%emt 0:00:00]} 3. Nc3 {[%emt 0:00:00]} Qd6 {[%emt 0:00:00]} 4. d4 {[%emt 0:04:38]} Nf6 {[%emt 0:00:22]} 5. Nf3 {[%emt 0:05:30]} a6 {[%emt 0:00:48]} 6. Bc4 {[%emt 0:05:29]} b5 {[%emt 0:03:05]} 7. Bb3 {[%emt 0:01:29]} Bb7 {[%emt 0:00:59]} 8. Be3 {[%emt 0:02:41]} e6 {[%emt 0:01:54]} 9. a4 {[%emt 0:14:17]} b4 {[%emt 0:03:59]} 10. Nb1 {[%emt 0:02:33]} Nd5 {[%emt 0:05:46]} 11. Qd2 {[%emt 0:06:12]} Be7 {[%emt 0:02:17]} 12. a5 {[%emt 0:03:36]} O-O {[%emt 0:01:55]} 13. O-O {[%emt 0:00:41]} Rd8 {[%emt 0:02:04]} 14. c3 {[%emt 0:01:04]} bxc3 {[%emt 0:01:51]} 15. bxc3 {[%emt 0:00:20]} Nc6 {[%emt 0:07:31]} 16. Qd3 {[%emt 0:04:20]} Bf6 {[%emt 0:15:05]} 17. Ng5 {[%emt 0:05:44]} Bxg5 {[%emt 0:00:34]} 18. Bxg5 {[%emt 0:00:08]} Nce7 {[%emt 0:01:37]} 19. Nd2 {[%emt 0:04:23]} Nf4 {[%emt 0:02:43]} 20. Bxf4 {[%emt 0:05:13]} Qxf4 {[%emt 0:00:06]} 21. Qe3 {[%emt 0:02:18]} Qf6 {[%emt 0:04:05]} 22. Ne4 {[%emt 0:03:44]} Qg6 {[%emt 0:02:12]} 23. Ng3 {[%emt 0:01:11]} Rab8 {[%emt 0:04:54]} 24. Bc4 {[%emt 0:02:50]} Nd5 {[%emt 0:08:15]} 25. Bxd5 {[%emt 0:00:53]} Rxd5 {[%emt 0:07:31]} 26. Rfb1 {[%emt 0:01:16]} Rxa5 {[%emt 0:05:58]} 27. Qf4 {[%emt 0:06:52]} Rxa1 {[%emt 0:01:20]} 28. Rxa1 {[%emt 0:00:06]} Rc8 {[%emt 0:00:48]} 29. Ra5 {[%emt 0:01:36]} Qb1+ {[%emt 0:00:31]} 30. Nf1 {[%emt 0:00:08]} Be4 {[%emt 0:01:40]} 31. h3 {[%emt 0:02:36]} Bd3 {[%emt 0:00:31]} 32. Kh2 Bxf1 {[%emt 0:00:42]} 33. Rc5 {[%emt 0:00:39]} Qb6 {[%emt 0:00:47]} 34. Kg1 {[%emt 0:00:34]} Bb5 {[%emt 0:00:34]} 35. c4 {[%emt 0:00:14]} Bd7 {[%emt 0:00:22]} 36. Rh5 {[%emt 0:00:40]} Qd6 {[%emt 0:01:41]} 37. Qh4 {[%emt 0:00:34]} h6 {[%emt 0:00:20]} 38. Re5 c5 {[%emt 0:02:47]} 39. Re4 {[%emt 0:04:12]} f5 {[%emt 0:01:48]} 0-1

[Event "GER-ch Youth U12 2020"]
[Site "Willingen"]
[Date "2020.10.31"]
[Round "7.6"]
[White "Korek, Jakob Alexander"]
[Black "Udelnov, Valentin"]
[Result "1-0"]
[ECO "E71"]
[WhiteElo "1592"]
[BlackElo "1691"]
[Annotator "NA RC"]
[PlyCount "115"]
[EventDate "2020.10.27"]
[EventType "swiss"]
[EventRounds "7"]
[EventCountry "GER"]
[SourceTitle "playchess.com"]
[Source "ChessBase"]
[SourceQuality "1"]
[TimeControl "40/5400+30:1800+30"]

1. d4 {[%emt 0:00:00]} Nf6 {[%emt 0:00:00]} 2. c4 {[%emt 0:00:00]} g6 {[%emt 0:00:00]} 3. Nc3 {[%emt 0:00:10]} Bg7 {[%emt 0:00:00]} 4. e4 {[%emt 0:00:19]} d6 {[%emt 0:00:05]} 5. h3 {[%emt 0:00:18]} O-O {[%emt 0:00:29]} 6. Be3 {[%emt 0:00:22]} e5 {[%emt 0:00:42]} 7. d5 {[%emt 0:00:29]} Nh5 {[%emt 0:01:30]} 8. g3 {[%emt 0:01:25]} f5 {[%emt 0:01:25]} 9. exf5 {[%emt 0:01:56]} Qe8 {[%emt 0:10:27]} 10. fxg6 {[%emt 0:01:26]} Qxg6 {[%emt 0:00:35]} 11. Bd3 {[%emt 0:01:13]} e4 {[%emt 0:17:26]} 12. Bf1 {[%emt 0:12:42]} Be5 {[%emt 0:13:41]} 13. Nge2 {[%emt 0:04:59]} Na6 {[%emt 0:03:04]} 14. g4 {[%emt 0:04:45]} Nf4 {[%emt 0:02:11]} 15. Nxf4 {[%emt 0:02:14]} Bxf4 {[%emt 0:00:13]} 16. Be2 {[%emt 0:04:59]} Bd7 {[%emt 0:03:35]} 17. Qd2 {[%emt 0:01:20]} Bxe3 {[%emt 0:03:03]} 18. fxe3 {[%emt 0:00:53]} Nc5 {[%emt 0:01:28]} 19. b4 {[%emt 0:04:29]} Na4 {[%emt 0:02:14]} 20. Qc2 {[%emt 0:01:01]} Qf6 {[%emt 0:01:50]} 21. Kd2 {[%emt 0:05:02]} Nxc3 {[%emt 0:01:25]} 22. Qxc3 {[%emt 0:00:11]} Qg6 {[%emt 0:01:43]} 23. Raf1 {[%emt 0:07:52]} Rxf1 {[%emt 0:02:33]} 24. Rxf1 {[%emt 0:00:56]} Qg7 {[%emt 0:01:13]} 25. Qxg7+ {[%emt 0:00:38]} Kxg7 {[%emt 0:00:08]} 26. Rf4 {[%emt 0:00:34]} Re8 {[%emt 0:01:54]} 27. h4 {[%emt 0:02:16]} c6 28. Bd1 {[%emt 0:05:06]} cxd5 {[%emt 0:01:39]} 29. cxd5 {[%emt 0:00:24]} Re5 30. Bb3 {[%emt 0:04:41]} Bb5 {[%emt 0:01:19]} 31. Kc3 {[%emt 0:02:03]} h6 {[%emt 0:01:44]} 32. Kd4 {[%emt 0:02:33]} Bd3 33. Bc4 {[%emt 0:07:53]} Bb1 {[%emt 0:01:52]} 34. Rf2 {[%emt 0:03:46]} a6 {[%emt 0:03:41]} 35. Rb2 {[%emt 0:00:57]} Bd3 {[%emt 0:00:07]} 36. Bxd3 {[%emt 0:00:19]} exd3 {[%emt 0:00:17]} 37. Rd2 {[%emt 0:00:12]} Re7 {[%emt 0:01:36]} 38. Rxd3 {[%emt 0:01:26]} Rf7 {[%emt 0:00:28]} 39. Rc3 {[%emt 0:00:50]} Rf2 {[%emt 0:01:08]} 40. Rc7+ {[%emt 0:00:35]} Kf6 {[%emt 0:00:42]} 41. Rxb7 {[%emt 0:32:52]} Rxa2 {[%emt 0:30:09]} 42. Rd7 {[%emt 0:00:36]} Rg2 {[%emt 0:00:11]} 43. g5+ {[%emt 0:01:05]} hxg5 {[%emt 0:00:12]} 44. hxg5+ {[%emt 0:00:16]} Rxg5 {[%emt 0:00:17]} 45. Rxd6+ {[%emt 0:00:11]} Kf5 {[%emt 0:00:16]} 46. e4+ {[%emt 0:00:31]} Kf4 {[%emt 0:00:12]} 47. Rxa6 Rg8 {[%emt 0:00:24]} 48. Rf6+ {[%emt 0:01:39]} Kg5 {[%emt 0:00:12]} 49. Rf5+ {[%emt 0:00:15]} Kg6 {[%emt 0:00:08]} 50. d6 {[%emt 0:00:16]} Rb8 {[%emt 0:00:20]} 51. b5 {[%emt 0:00:28]} Rb6 {[%emt 0:00:25]} 52. Kc5 {[%emt 0:00:12]} Rb8 {[%emt 0:00:11]} 53. d7 {[%emt 0:00:32]} Ra8 {[%emt 0:01:06]} 54. Rd5 {[%emt 0:00:40]} Rd8 {[%emt 0:00:11]} 55. Kc6 {[%emt 0:00:39]} Kf7 {[%emt 0:00:19]} 56. Kc7 {[%emt 0:00:16]} Rxd7+ {[%emt 0:00:16]} 57. Kxd7 {[%emt 0:00:10]} Kf6 {[%emt 0:00:08]} 58. b6 {[%emt 0:00:08]} 1-0

[Event "GER-ch Youth U12 2020"]
[Site "Willingen"]
[Date "2020.10.31"]
[Round "7.7"]
[White "Honisch, Alexander"]
[Black "Zobel, Christian"]
[Result "1/2-1/2"]
[ECO "C42"]
[WhiteElo "1667"]
[BlackElo "1521"]
[Annotator "NA RC"]
[PlyCount "64"]
[EventDate "2020.10.27"]
[EventType "swiss"]
[EventRounds "7"]
[EventCountry "GER"]
[SourceTitle "playchess.com"]
[Source "ChessBase"]
[SourceQuality "1"]
[TimeControl "40/5400+30:1800+30"]

1. e4 {[%emt 0:00:00]} e5 {[%emt 0:00:00]} 2. Nf3 {[%emt 0:00:19]} Nf6 {[%emt 0:00:14]} 3. Nxe5 {[%emt 0:00:37]} d6 {[%emt 0:00:10]} 4. Nf3 {[%emt 0:00:27]} Nxe4 {[%emt 0:00:12]} 5. Nc3 {[%emt 0:00:39]} Nxc3 {[%emt 0:01:12]} 6. dxc3 {[%emt 0:00:25]} Be7 {[%emt 0:02:04]} 7. Be3 {[%emt 0:01:08]} Nc6 {[%emt 0:02:37]} 8. Qd2 {[%emt 0:02:54]} Be6 {[%emt 0:05:26]} 9. O-O-O {[%emt 0:02:11]} Qd7 {[%emt 0:05:01]} 10. Kb1 {[%emt 0:01:38]} Rb8 {[%emt 0:03:37]} 11. Nd4 {[%emt 0:06:04]} Nxd4 {[%emt 0:05:32]} 12. Bxd4 {[%emt 0:09:42]} O-O {[%emt 0:07:09]} 13. h4 {[%emt 0:03:49]} b5 {[%emt 0:04:30]} 14. h5 {[%emt 0:04:43]} a5 {[%emt 0:02:35]} 15. h6 {[%emt 0:05:48]} g6 {[%emt 0:01:37]} 16. Ba7 {[%emt 0:10:16]} Rb7 {[%emt 0:08:35]} 17. Qd4 {[%emt 0:01:00]} f6 {[%emt 0:00:16]} 18. Qe3 {[%emt 0:00:45]} b4 {[%emt 0:06:56]} 19. Re1 {[%emt 0:09:59]} c6 {[%emt 0:13:34]} 20. Qxe6+ {[%emt 0:02:52]} Qxe6 {[%emt 0:00:10]} 21. Rxe6 Rxa7 {[%emt 0:00:14]} 22. cxb4 {[%emt 0:00:25]} Kf7 {[%emt 0:03:42]} 23. Re3 {[%emt 0:01:22]} axb4 {[%emt 0:00:41]} 24. Bc4+ {[%emt 0:01:25]} d5 {[%emt 0:00:20]} 25. Bb3 {[%emt 0:00:03]} Bc5 {[%emt 0:00:49]} 26. Rd3 {[%emt 0:04:59]} Re8 {[%emt 0:06:39]} 27. c4 {[%emt 0:01:04]} d4 {[%emt 0:02:28]} 28. Bd1 {[%emt 0:02:31]} Rae7 {[%emt 0:04:40]} 29. Bf3 {[%emt 0:00:31]} Re1+ {[%emt 0:01:18]} 30. Rxe1 {[%emt 0:00:42]} Rxe1+ {[%emt 0:00:07]} 31. Kc2 {[%emt 0:00:31]} Re6 {[%emt 0:00:07]} 32. Rd2 {[%emt 0:00:26]} f5 {[%emt 0:01:19]} 1/2-1/2